fUSD/lending_fUSD_20250629
["ID","MTS","AMOUNT","RATE_DAILY","PERIOD"]
[368492432,1751190756572,-2024.74,0.0003041,3]
[368492433,1751190756581,-5682.59,0.0003041,3]
[368492434,1751190756590,-490.0,0.0003041,3]
[368492436,1751190756599,-301.6,0.0003041,3]
[368492437,1751190756609,-2104.31,0.0003041,3]
[368492438,1751190756617,-626.13,0.0003041,3]
[368492440,1751190756627,-1968.64,0.0003041,3]
[368492441,1751190756636,-2133.2,0.0003041,3]
[368492443,1751190756646,-1770.11,0.0003041,3]
[368492444,1751190756655,-1764.06,0.0003041,3]
[368492445,1751190756663,-490.0,0.0003041,3]
[368492446,1751190756673,-700.52,0.0003041,3]
[368492447,1751190756682,-1730.13,0.0003041,3]
[368492448,1751190756692,-2165.68,0.0003041,3]
[368492449,1751190756701,-883.4,0.0003041,3]
[368492450,1751190756710,-513.72,0.0003041,3]
[368492451,1751190756720,-1926.75,0.0003041,3]
[368492452,1751190756730,-5921.12,0.0003041,3]
[368492453,1751190756739,-462.99509543,0.0003041,3]
[368492454,1751190756748,-490.0,0.0003041,3]
[368492455,1751190756757,-2141.99,0.0003041,3]
[368492456,1751190756766,-490.0,0.0003041,3]
[368492457,1751190756776,-2043.04,0.0003041,3]
[368492458,1751190756785,-631.01,0.0003041,3]
[368492459,1751190756795,-855.58,0.0003041,3]
[368492460,1751190756804,-696.89,0.0003041,3]
[368492461,1751190756813,-1625.9,0.0003041,3]
[368492462,1751190756822,-3241.41,0.0003041,3]
[368492463,1751190756831,-3866.16,0.0003041,3]
[368492464,1751190756840,-2087.25,0.0003041,3]
[368492465,1751190756849,-1891.34,0.0003041,3]
[368492466,1751190756858,-4543.11,0.0003041,3]
[368492467,1751190756867,-569.82,0.0003041,3]
[368492468,1751190756876,-1931.12,0.0003041,3]
[368492469,1751190756886,-490.0,0.0003041,3]
[368492470,1751190756895,-1948.57,0.0003041,3]
[368492471,1751190756905,-1323.16,0.0003041,3]
[368492472,1751190756914,-971.22,0.0003041,3]
[368492473,1751190756923,-6890.33,0.0003041,3]
[368492474,1751190756933,-490.0,0.0003041,3]
[368492475,1751190756942,-961.28,0.0003041,3]
[368492476,1751190756952,-1740.09,0.0003041,3]
[368492477,1751190756961,-1509.17,0.0003041,3]
[368492478,1751190756971,-2526.68,0.0003041,3]
[368492479,1751190756981,-490.0,0.0003041,3]
[368492480,1751190756990,-1923.32,0.0003041,3]
[368492481,1751190757000,-802.0,0.00030411,3]
[368492482,1751190757009,-351.78034518,0.00030411,3]
[368492483,1751190757018,-500.0,0.00030411,3]
[368492484,1751190757028,-500.0,0.00030411,3]
[368492485,1751190757039,-453.0,0.00030411,3]
[368492486,1751190757048,-510.53793796,0.00030412,5]
[368492487,1751190757057,-1514.76772965,0.00030412,5]
[368492488,1751190757067,-2043.46130184,0.00030417,22]
[368492489,1751190757077,-318.0,0.00030441,7]
[368492490,1751190757086,-159.727904,0.00030473,2]
[368492491,1751190757096,-312.68872601,0.00030476,7]
[368492492,1751190757106,-294.80816015,0.00030476,7]
[368492493,1751190757116,-170.0,0.00030485,2]
[368492494,1751190757126,-150.0,0.0003049,7]
[368492495,1751190757135,-150.0,0.00030495,7]
[368492496,1751190757146,-150.0,0.00030508,7]
[368492497,1751190757156,-168.0,0.00030528,2]
[368492498,1751190757166,-150.0,0.00030539,7]
[368492499,1751190757175,-312.68872601,0.00030543,7]
[368492500,1751190757185,-294.80816015,0.00030543,7]
[368492501,1751190757195,-150.0,0.0003055,7]
[368492502,1751190757204,-150.0,0.0003057,7]
[368492503,1751190757214,-150.0,0.00030581,7]
[368492504,1751190757223,-500.0,0.00030603,2]
[368492505,1751190757232,-150.0,0.00030606,7]
[368492506,1751190757242,-312.68872601,0.00030609,7]
[368492507,1751190757251,-294.80816015,0.00030609,7]
[368492508,1751190757260,-2105.69,0.0003062,2]
[368492509,1751190757269,-3832.53,0.0003062,2]
[368492510,1751190757278,-2043.46130184,0.00030624,23]
[368492511,1751190757287,-150.0,0.0003065,7]
[368492512,1751190757297,-150.0,0.00030666,7]
[368492513,1751190757306,-150.0,0.00030668,7]
[368492514,1751190757315,-312.68872601,0.00030675,7]
[368492515,1751190757326,-294.80816015,0.00030675,7]
[368492516,1751190757334,-1528.36,0.00030684,9]
[368492517,1751190757344,-600.46,0.00030684,3]
[368492518,1751190757353,-542.33,0.00030684,3]
[368492519,1751190757362,-847.37,0.00030684,3]
[368492520,1751190757372,-490.0,0.00030684,3]
[368492521,1751190757382,-490.0,0.00030684,3]
[368492522,1751190757391,-490.0,0.00030684,3]
[368492523,1751190757400,-490.0,0.00030684,3]
[368492524,1751190757410,-490.0,0.00030684,3]
[368492525,1751190757419,-948.9,0.00030684,3]
[368492526,1751190757428,-667.1,0.00030684,3]
[368492527,1751190757440,-513.09,0.00030684,3]
[368492528,1751190757450,-978.74,0.00030684,3]
[368492529,1751190757459,-642.29,0.00030684,3]
[368492530,1751190757469,-490.0,0.00030684,3]
[368492531,1751190757479,-490.0,0.00030684,3]
[368492532,1751190757489,-490.0,0.00030684,3]
[368492533,1751190757499,-1186.44,0.00030684,3]
[368492534,1751190757508,-490.0,0.00030684,3]
[368492535,1751190757517,-490.0,0.00030684,3]
[368492536,1751190757527,-2554.302964,0.00030684,3]
[368492537,1751190757536,-490.0,0.00030684,3]
[368492538,1751190757545,-853.16,0.00030684,3]
[368492539,1751190757554,-490.0,0.00030684,3]
[368492540,1751190757563,-2816.157543,0.00030684,3]
[368492541,1751190757573,-490.0,0.00030684,3]
[368492542,1751190757582,-490.0,0.00030684,3]
[368492543,1751190757591,-2200.380726,0.00030684,3]
[368492544,1751190757600,-392.680419,0.00030684,3]
[368492545,1751190757609,-500.85,0.00030684,3]
[368492546,1751190757618,-490.0,0.00030684,3]
[368492547,1751190757628,-887.72,0.00030684,3]
[368492548,1751190757637,-490.0,0.00030684,3]
[368492549,1751190757647,-556.18,0.00030684,3]
[368492550,1751190757656,-656.47,0.00030684,3]
[368492551,1751190757667,-571.97,0.00030684,3]
[368492552,1751190757677,-490.0,0.00030684,3]
[368492553,1751190757686,-490.0,0.00030684,3]
[368492554,1751190757696,-858.42,0.00030684,3]
[368492555,1751190757706,-490.0,0.00030684,3]
[368492556,1751190757715,-648.74,0.00030684,3]
[368492557,1751190757725,-1167.71,0.00030684,3]
[368492558,1751190757735,-490.0,0.00030684,3]
[368492559,1751190757745,-167.777922,0.00030684,3]
[368492560,1751190757755,-178.561906,0.00030684,3]
[368492561,1751190757764,-642.42,0.00030684,3]
[368492562,1751190757774,-523.68,0.00030684,3]
[368492563,1751190757783,-490.0,0.00030684,3]
[368492564,1751190757792,-490.0,0.00030684,3]
[368492565,1751190757802,-625.75,0.00030684,3]
[368492566,1751190757812,-490.0,0.00030684,3]
[368492567,1751190757821,-490.0,0.00030684,3]
[368492568,1751190757831,-490.0,0.00030684,3]
[368492569,1751190757840,-490.0,0.00030684,3]
[368492570,1751190757850,-1529.36,0.00030684,3]
[368492571,1751190757859,-160.05141139,0.00030684,3]
[368492572,1751190757869,-490.0,0.00030684,3]
[368492573,1751190757878,-725.47,0.00030684,3]
[368492574,1751190757888,-167.777922,0.00030684,3]
[368492575,1751190757897,-490.0,0.00030684,3]
[368492576,1751190757906,-490.0,0.00030684,3]
[368492577,1751190757915,-490.0,0.00030684,3]
[368492578,1751190757925,-1837.93,0.00030684,3]
[368492579,1751190757934,-252.34834271,0.00030684,3]
[368492580,1751190757943,-490.0,0.00030684,3]
[368492581,1751190757953,-961.81,0.00030684,3]
[368492582,1751190757962,-677.59,0.00030684,3]
[368492583,1751190757972,-490.0,0.00030684,3]
[368492584,1751190757983,-490.0,0.00030684,3]
[368492585,1751190757992,-490.0,0.00030684,3]
[368492586,1751190758002,-811.6,0.00030684,3]
[368492587,1751190758011,-701.76,0.00030684,3]
[368492588,1751190758021,-490.0,0.00030684,3]
[368492589,1751190758031,-801.55,0.00030684,3]
[368492590,1751190758041,-490.0,0.00030684,3]
[368492591,1751190758051,-493.56,0.00030684,3]
[368492592,1751190758060,-490.0,0.00030684,3]
[368492593,1751190758069,-590.68,0.00030684,3]
[368492594,1751190758078,-490.0,0.00030684,3]
[368492595,1751190758087,-490.0,0.00030684,3]
[368492596,1751190758096,-490.0,0.00030684,3]
[368492597,1751190758106,-740.41,0.00030684,3]
[368492598,1751190758115,-930.82,0.00030684,3]
[368492599,1751190758124,-1134.82,0.00030684,3]
[368492600,1751190758134,-629.08,0.00030684,3]
[368492601,1751190758144,-507.56,0.00030684,3]
[368492602,1751190758154,-508.09,0.00030684,3]
[368492603,1751190758162,-1395.58,0.00030684,3]
[368492604,1751190758172,-596.83,0.00030684,3]
[368492605,1751190758182,-516.57,0.00030684,3]
[368492606,1751190758191,-1527.96,0.00030684,3]
[368492607,1751190758201,-2015.14,0.00030684,3]
[368492608,1751190758210,-490.0,0.00030684,3]
[368492609,1751190758219,-615.0,0.00030684,3]
[368492610,1751190758228,-490.0,0.00030684,3]
[368492611,1751190758239,-889.47,0.00030684,3]
[368492612,1751190758248,-2302.9,0.00030684,3]
[368492613,1751190758257,-945.27,0.00030684,3]
[368492614,1751190758266,-743.01,0.00030684,3]
[368492615,1751190758276,-643.27,0.00030684,3]
[368492616,1751190758286,-1940.61,0.00030684,3]
[368492617,1751190758296,-1952.95,0.00030684,3]
[368492618,1751190758304,-1201.96,0.00030684,3]
[368492619,1751190758314,-1310.06,0.00030684,3]
[368492620,1751190758323,-369.84,0.00030684,3]
[368492621,1751190758331,-1125.22,0.00030684,3]
[368492622,1751190758340,-1224.35,0.00030684,3]
[368492623,1751190758349,-490.0,0.00030684,3]
[368492624,1751190758358,-490.0,0.00030684,3]
[368492625,1751190758368,-976.06,0.00030684,3]
[368492626,1751190758377,-749.58,0.00030684,3]
[368492627,1751190758386,-1824.88,0.00030684,3]
[368492628,1751190758395,-603.75,0.00030684,3]
[368492629,1751190758404,-957.88,0.00030684,3]
[368492630,1751190758413,-490.0,0.00030684,3]
[368492631,1751190758422,-490.0,0.00030684,3]
[368492632,1751190758431,-490.0,0.00030684,3]
[368492633,1751190758443,-538.77,0.00030684,3]
[368492634,1751190758452,-776.78,0.00030684,3]
[368492635,1751190758461,-960.82,0.00030684,3]
[368492636,1751190758470,-894.84,0.00030684,3]
[368492637,1751190758480,-490.0,0.00030684,3]
[368492638,1751190758491,-490.0,0.00030684,3]
[368492639,1751190758501,-1904.77,0.00030684,3]
[368492640,1751190758512,-490.0,0.00030684,3]
[368492641,1751190758521,-1462.39,0.00030684,3]
[368492642,1751190758533,-2300.89,0.00030684,3]
[368492643,1751190758543,-490.0,0.00030684,3]
[368492644,1751190758553,-694.52,0.00030684,3]
[368492645,1751190758562,-650.78,0.00030684,3]
[368492646,1751190758571,-2228.41,0.00030684,3]
[368492647,1751190758580,-490.0,0.00030684,3]
[368492648,1751190758589,-490.0,0.00030684,3]
[368492649,1751190758598,-1649.19,0.00030684,3]
[368492650,1751190758608,-2026.94,0.00030684,3]
[368492651,1751190758617,-490.0,0.00030684,3]
[368492652,1751190758626,-843.7,0.00030684,3]
[368492653,1751190758635,-490.0,0.00030684,3]
[368492654,1751190758644,-490.0,0.00030684,3]
[368492655,1751190758653,-490.0,0.00030684,3]
[368492656,1751190758663,-490.0,0.00030684,3]
[368492657,1751190758672,-571.61,0.00030684,3]
[368492658,1751190758682,-1556.08,0.00030684,3]
[368492659,1751190758691,-490.0,0.00030684,3]
[368492660,1751190758700,-896.97,0.00030684,3]
[368492661,1751190758709,-594.67,0.00030684,3]
[368492662,1751190758718,-1147.84,0.00030684,3]
[368492663,1751190758728,-1027.62,0.00030684,3]
[368492664,1751190758737,-707.16,0.00030684,3]
[368492665,1751190758747,-880.72,0.00030684,3]
[368492666,1751190758756,-490.0,0.00030684,3]
[368492667,1751190758766,-792.35,0.00030684,3]
[368492668,1751190758775,-490.0,0.00030684,3]
[368492669,1751190758784,-490.0,0.00030684,3]
[368492670,1751190758794,-780.47,0.00030684,3]
[368492671,1751190758804,-560.33,0.00030684,3]
[368492672,1751190758815,-944.59,0.00030684,3]
[368492673,1751190758825,-1653.81,0.00030684,3]
[368492674,1751190758836,-525.19,0.00030684,3]
[368492675,1751190758845,-1620.77,0.00030684,3]
[368492676,1751190758855,-1900.77,0.00030684,3]
[368492677,1751190758865,-490.0,0.00030684,3]
[368492678,1751190758874,-521.24,0.00030684,3]
[368492679,1751190758884,-1487.61,0.00030684,3]
[368492680,1751190758893,-1556.78,0.00030684,3]
[368492681,1751190758903,-1633.03,0.00030684,3]
[368492682,1751190758913,-1046.71,0.00030684,3]
[368492683,1751190758923,-506.3,0.00030684,3]
[368492684,1751190758932,-514.5,0.00030684,3]
[368492685,1751190758941,-1936.24,0.00030684,3]
[368492686,1751190758951,-490.0,0.00030684,3]
[368492687,1751190758960,-2262.43,0.00030684,3]
[368492688,1751190758970,-665.95,0.00030684,3]
[368492689,1751190758979,-2474.6,0.00030684,3]
[368492690,1751190758989,-1268.88,0.00030684,3]
[368492691,1751190758998,-490.0,0.00030684,3]
[368492692,1751190759008,-689.16,0.00030684,3]
[368492693,1751190759018,-1400.07,0.00030684,3]
[368492694,1751190759027,-858.86,0.00030684,3]
[368492695,1751190759036,-730.59,0.00030684,3]
[368492696,1751190759046,-666.33,0.00030684,3]
[368492697,1751190759055,-1700.28,0.00030684,3]
[368492698,1751190759064,-818.45,0.00030684,3]
[368492699,1751190759074,-1024.15,0.00030684,3]
[368492700,1751190759083,-709.17,0.00030684,3]
[368492701,1751190759094,-1027.52,0.00030684,3]
[368492702,1751190759104,-2038.87,0.00030684,3]
[368492703,1751190759113,-490.0,0.00030684,3]
[368492704,1751190759123,-534.02,0.00030684,3]
[368492705,1751190759133,-2394.84,0.00030684,3]
[368492706,1751190759142,-1561.51,0.00030684,3]
[368492707,1751190759152,-564.37261523,0.00030684,3]
[368492708,1751190759162,-490.0,0.00030684,3]
[368492709,1751190759172,-1167.05,0.00030684,3]
[368492711,1751190759183,-899.19,0.00030684,3]
[368492712,1751190759192,-935.31,0.00030684,3]
[368492714,1751190759202,-771.06,0.00030684,3]
[368492715,1751190759211,-610.33,0.00030684,3]
[368492716,1751190759221,-490.0,0.00030684,3]
[368492718,1751190759231,-1503.84,0.00030684,3]
[368492719,1751190759241,-1626.28,0.00030684,3]
[368492720,1751190759251,-566.4,0.00030684,3]
[368492721,1751190759261,-715.86,0.00030684,3]
[368492722,1751190759272,-934.93,0.00030684,3]
[368492723,1751190759281,-516.29,0.00030684,3]
[368492724,1751190759290,-589.35,0.00030684,3]
[368492725,1751190759301,-2211.02,0.00030684,3]
[368492726,1751190759310,-1313.26,0.00030684,3]
[368492727,1751190759320,-878.98,0.00030684,3]
[368492728,1751190759329,-2018.3,0.00030684,3]
[368492729,1751190759339,-1272.1,0.00030684,3]
[368492730,1751190759348,-1320.46,0.00030684,3]
[368492731,1751190759359,-2254.95,0.00030684,3]
[368492732,1751190759369,-490.0,0.00030684,3]
[368492733,1751190759378,-490.0,0.00030684,3]
[368492734,1751190759388,-801.49,0.00030684,3]
[368492735,1751190759397,-793.92,0.00030684,3]
[368492736,1751190759407,-1409.04,0.00030684,3]
[368492737,1751190759416,-566.98,0.00030684,3]
[368492738,1751190759425,-855.39,0.00030684,3]
[368492739,1751190759435,-520.23,0.00030684,3]
[368492740,1751190759446,-503.31,0.00030684,3]
[368492741,1751190759456,-1383.19,0.00030684,3]
[368492742,1751190759465,-490.0,0.00030684,3]
[368492743,1751190759475,-461.9103713,0.00030684,3]
[368492744,1751190759484,-907.17,0.00030684,3]
[368492745,1751190759495,-490.0,0.00030684,3]
[368492746,1751190759504,-1733.55,0.00030684,3]
[368492747,1751190759513,-1411.93,0.00030684,3]
[368492748,1751190759523,-594.3400755,0.00030684,3]
[368492749,1751190759532,-490.0,0.00030684,3]
[368492750,1751190759541,-1161.29,0.00030684,3]
[368492751,1751190759550,-490.0,0.00030684,3]
[368492752,1751190759559,-648.19,0.00030684,3]
[368492753,1751190759569,-490.0,0.00030684,3]
[368492754,1751190759578,-490.0,0.00030684,3]
[368492755,1751190759587,-664.2,0.00030684,3]
[368492756,1751190759597,-492.59,0.00030684,3]
[368492757,1751190759607,-1411.98,0.00030684,3]
[368492758,1751190759616,-490.0,0.00030684,3]
[368492759,1751190759625,-1476.05,0.00030684,3]
[368492760,1751190759636,-490.0,0.00030684,3]
[368492761,1751190759646,-490.0,0.00030684,3]
[368492762,1751190759656,-490.0,0.00030684,3]
[368492763,1751190759665,-2483.68,0.00030684,3]
[368492764,1751190759675,-1539.15,0.00030684,3]
[368492765,1751190759685,-622.78,0.00030684,3]
[368492766,1751190759694,-2320.44,0.00030684,3]
[368492767,1751190759703,-159.31891721,0.00030684,3]
[368492768,1751190759713,-894.95,0.00030684,3]
[368492769,1751190759722,-701.41,0.00030684,3]
[368492770,1751190759733,-526.1,0.00030684,3]
[368492771,1751190759743,-1005.08,0.00030684,3]
[368492772,1751190759753,-490.0,0.00030684,3]
[368492773,1751190759763,-1032.78,0.00030684,3]
[368492774,1751190759772,-1199.97,0.00030684,3]
[368492775,1751190759782,-549.61,0.00030684,3]
[368492776,1751190759791,-1283.76,0.00030684,3]
[368492777,1751190759801,-490.0,0.00030684,3]
[368492778,1751190759813,-490.0,0.00030684,3]
[368492779,1751190759822,-901.15,0.00030684,3]
[368492780,1751190759831,-545.6,0.00030684,3]
[368492781,1751190759840,-841.45,0.00030684,3]
[368492782,1751190759850,-525.0,0.00030684,3]
[368492783,1751190759859,-908.9,0.00030684,3]
[368492784,1751190759868,-1956.7,0.00030684,3]
[368492785,1751190759878,-1559.17,0.00030684,3]
[368492786,1751190759887,-490.0,0.00030684,3]
[368492787,1751190759897,-772.36,0.00030684,3]
[368492788,1751190759906,-1731.31,0.00030684,3]
[368492789,1751190759916,-490.0,0.00030684,3]
[368492790,1751190759926,-1241.41,0.00030684,3]
[368492791,1751190759935,-490.0,0.00030684,3]
[368492792,1751190759945,-2257.75,0.00030684,3]
[368492793,1751190759954,-1736.54,0.00030684,3]
[368492794,1751190759963,-2325.03,0.00030684,3]
[368492795,1751190759973,-613.43,0.00030684,3]
[368492796,1751190759982,-1117.78,0.00030684,3]
[368492797,1751190759993,-896.69,0.00030684,3]
[368492798,1751190760003,-998.0,0.00030684,3]
[368492799,1751190760012,-1022.6,0.00030684,3]
[368492800,1751190760022,-1382.19,0.00030684,3]
[368492801,1751190760032,-490.0,0.00030684,3]
[368492802,1751190760042,-1087.69,0.00030684,3]
[368492803,1751190760051,-937.32,0.00030684,3]
[368492804,1751190760061,-462.48257461,0.00030684,3]
[368492805,1751190760071,-490.0,0.00030684,3]
[368492806,1751190760081,-490.0,0.00030684,3]
[368492807,1751190760090,-490.0,0.00030684,3]
[368492808,1751190760099,-490.0,0.00030684,3]
[368492809,1751190760109,-2003.29,0.00030684,3]
[368492810,1751190760119,-1073.82,0.00030684,3]
[368492811,1751190760128,-1428.66,0.00030684,3]
[368492812,1751190760137,-490.0,0.00030684,3]
[368492813,1751190760147,-906.56,0.00030684,3]
[368492814,1751190760157,-751.94,0.00030684,3]
[368492815,1751190760168,-1284.2,0.00030684,3]
[368492816,1751190760178,-995.73,0.00030684,3]
[368492817,1751190760187,-730.89,0.00030684,3]
[368492818,1751190760197,-490.0,0.00030684,3]
[368492819,1751190760206,-490.0,0.00030684,3]
[368492820,1751190760216,-490.0,0.00030684,3]
[368492821,1751190760332,-490.0,0.00030684,3]
[368492822,1751190760343,-490.0,0.00030684,3]
[368492823,1751190760353,-490.0,0.00030684,3]
[368492824,1751190760362,-3819.49,0.00030684,3]
[368492825,1751190760372,-614.58,0.00030684,3]
[368492826,1751190760382,-2099.43,0.00030684,3]
[368492827,1751190760391,-591.09,0.00030684,3]
[368492828,1751190760401,-490.0,0.00030684,3]
[368492829,1751190760410,-930.34,0.00030684,3]
[368492830,1751190760420,-1763.09,0.00030684,3]
[368492831,1751190760430,-1553.22,0.00030684,3]
[368492832,1751190760444,-1288.37,0.00030684,3]
[368492833,1751190760454,-490.0,0.00030684,3]
[368492834,1751190760463,-935.65,0.00030684,3]
[368492835,1751190760473,-490.0,0.00030684,3]
[368492836,1751190760487,-490.0,0.00030684,3]
[368492837,1751190760497,-587.32,0.00030684,3]
[368492838,1751190760506,-854.31,0.00030684,3]
[368492839,1751190760515,-4450.47,0.00030684,3]
[368492840,1751190760525,-490.0,0.00030684,3]
[368492841,1751190760534,-528.19,0.00030684,3]
[368492842,1751190760544,-959.78,0.00030684,3]
[368492843,1751190760553,-490.0,0.00030684,3]
[368492844,1751190760562,-766.16,0.00030684,3]
[368492845,1751190760572,-1454.99,0.00030684,3]
[368492846,1751190760581,-1177.8,0.00030684,3]
[368492847,1751190760591,-490.0,0.00030684,3]
[368492848,1751190760601,-1065.99,0.00030684,3]
[368492849,1751190760611,-490.0,0.00030684,3]
[368492850,1751190760622,-921.89,0.00030684,3]
[368492851,1751190760631,-1049.98,0.00030684,3]
[368492852,1751190760640,-490.0,0.00030684,3]
[368492853,1751190760651,-603.29,0.00030684,3]
[368492854,1751190760662,-490.0,0.00030684,3]
[368492855,1751190760674,-490.0,0.00030684,3]
[368492856,1751190760683,-1101.22,0.00030684,3]
[368492857,1751190760692,-555.36,0.00030684,3]
[368492858,1751190760701,-490.0,0.00030684,3]
[368492859,1751190760711,-1690.83,0.00030684,3]
[368492860,1751190760721,-494.25,0.00030684,3]
[368492861,1751190760730,-608.46,0.00030684,3]
[368492862,1751190760740,-916.39,0.00030684,3]
[368492863,1751190760750,-698.3,0.00030684,3]
[368492864,1751190760760,-573.71,0.00030684,3]
[368492865,1751190760770,-1033.94,0.00030684,3]
[368492866,1751190760780,-1394.52,0.00030684,3]
[368492867,1751190760789,-841.15,0.00030684,3]
[368492868,1751190760798,-18048.03,0.00030684,3]
[368492869,1751190760809,-814.68,0.00030684,3]
[368492870,1751190760819,-817.07,0.00030684,3]
[368492871,1751190760829,-994.63,0.00030684,3]
[368492872,1751190760839,-217.45380841,0.00030684,3]
[368492873,1751190760848,-860.32,0.00030684,3]
[368492874,1751190760857,-490.0,0.00030684,3]
[368492875,1751190760867,-1083.78,0.00030684,3]
[368492876,1751190760876,-895.73,0.00030684,3]
[368492877,1751190760886,-1619.71,0.00030684,3]
[368492878,1751190760896,-2039.79,0.00030684,3]
[368492879,1751190760905,-490.0,0.00030684,3]
[368492880,1751190760915,-490.0,0.00030684,3]
[368492881,1751190760924,-627.15,0.00030684,3]
[368492882,1751190760934,-490.0,0.00030684,3]
[368492883,1751190760943,-1338.17,0.00030684,3]
[368492884,1751190760953,-522.56,0.00030684,3]
[368492885,1751190760963,-5045.19,0.00030684,3]
[368492886,1751190760972,-732.19,0.00030684,3]
[368492887,1751190760982,-490.0,0.00030684,3]
[368492888,1751190760991,-490.0,0.00030684,3]
[368492889,1751190761002,-2735.95,0.00030684,3]
[368492890,1751190761012,-2798.62,0.00030684,3]
[368492891,1751190761022,-490.0,0.00030684,3]
[368492892,1751190761031,-1159.62,0.00030684,3]
[368492893,1751190761041,-557.27,0.00030684,3]
[368492894,1751190761051,-490.0,0.00030684,3]
[368492895,1751190761061,-1735.18,0.00030684,3]
[368492896,1751190761071,-592.0690619,0.00030684,3]
[368492897,1751190761081,-490.0,0.00030684,3]
[368492898,1751190761091,-795.99,0.00030684,3]
[368492899,1751190761101,-490.0,0.00030684,3]
[368492900,1751190761111,-2632.4,0.00030684,3]
[368492901,1751190761121,-2676.96,0.00030684,3]
[368492902,1751190761131,-890.5,0.00030684,3]
[368492903,1751190761141,-815.43,0.00030684,3]
[368492904,1751190761152,-490.0,0.00030684,3]
[368492905,1751190761162,-2287.33,0.00030684,3]
[368492906,1751190761171,-490.0,0.00030684,3]
[368492907,1751190761181,-7199.68,0.00030684,3]
[368492908,1751190761190,-1083.86,0.00030684,3]
[368492909,1751190761199,-1198.65,0.00030684,3]
[368492910,1751190761209,-490.0,0.00030684,3]
[368492911,1751190761218,-564.45,0.00030684,3]
[368492912,1751190761228,-4926.93,0.00030684,3]
[368492913,1751190761238,-2111.85,0.00030684,3]
[368492914,1751190761249,-2504.77,0.00030684,3]
[368492915,1751190761259,-670.5,0.00030684,3]
[368492916,1751190761269,-9168.68,0.00030684,3]
[368492917,1751190761278,-1466.04,0.00030684,3]
[368492918,1751190761287,-148479.19,0.00030684,3]
[368492919,1751190761300,-995.99,0.00030684,3]
[368492920,1751190761310,-1110.23,0.00030684,3]
[368492921,1751190761320,-884.61,0.00030684,3]
[368492922,1751190761329,-3927.92,0.00030684,3]
[368492923,1751190761339,-1262.58,0.00030684,3]
[368492924,1751190761348,-490.0,0.00030684,3]
[368492925,1751190761358,-1550.57,0.00030684,3]
[368492926,1751190761367,-490.0,0.00030684,3]
[368492927,1751190761377,-799.02,0.00030684,3]
[368492928,1751190761386,-4423.72,0.00030684,3]
[368492929,1751190761396,-1420.75,0.00030684,3]
[368492930,1751190761405,-490.0,0.00030684,3]
[368492931,1751190761414,-2359.81,0.00030684,3]
[368492932,1751190761424,-612.29,0.00030684,3]
[368492933,1751190761435,-2220.09,0.00030684,3]
[368492934,1751190761444,-490.0,0.00030684,3]
[368492935,1751190761453,-490.0,0.00030684,3]
[368492936,1751190761467,-1116.8,0.00030684,3]
[368492937,1751190761476,-1635.41,0.00030684,3]